bitfinex/quotes_SOLUSD_20220109
["timestamp","ask_amount","ask_price","bid_price","bid_amount"]
[1641763659300,24.0466,143.3,143.22,0.51]
[1641763659700,24.0466,143.3,143.22,0.25]
[1641763659901,24.0466,143.3,143.22,10.7193]
[1641763660104,24.0466,143.3,143.23,31.44834035]
[1641763660302,23.2228,143.31,143.23,31.44834035]
[1641763660502,23.2228,143.31,143.24,0.25]
[1641763661103,23.2228,143.31,143.24,8.524]
[1641763661403,23.2228,143.31,143.25,0.26]
[1641763661802,23.2228,143.31,143.25,10.7271]
[1641763662005,98.4502,143.33,143.25,10.7271]
[1641763662202,3.25,143.32,143.25,10.7271]
[1641763666611,3.25,143.32,143.23,10.469]
[1641763666909,13.19,143.32,143.23,10.469]
[1641763667608,13.19,143.32,143.2,126.48009398]
[1641763667810,10.4706,143.3,143.21,0.25]
[1641763668010,23.9602,143.29,143.21,0.51]
[1641763668208,24.2102,143.29,143.21,0.51]
[1641763668909,24.2102,143.29,143.21,10.9803]
[1641763670410,3.0,143.28,143.21,10.9803]
[1641763670809,24.2102,143.29,143.21,10.9803]
[1641763671711,24.2102,143.29,143.21,10.7203]
[1641763671911,30.56846216,143.28,143.21,10.7203]
[1641763673513,23.9602,143.29,143.21,10.7203]
[1641763675415,23.9602,143.29,143.22,0.26]
[1641763675714,23.9602,143.29,143.22,10.7301]
[1641763675916,23.9602,143.29,143.23,0.25]
[1641763677850,23.9602,143.29,143.23,10.7184]
[1641763678249,23.9602,143.29,143.24,0.26]
[1641763678951,23.9602,143.29,143.23,10.9787]
[1641763684758,24.4449,143.32,143.23,10.9787]
[1641763684958,3.25,143.31,143.23,10.9787]
[1641763685960,3.25,143.31,143.23,10.4687]
[1641763686160,3.25,143.31,143.22,1.96720043]
[1641763686360,10.2,143.3,143.22,1.96720043]
[1641763686560,3.0,143.29,143.22,1.96720043]
[1641763686761,10.4733,143.26,143.2,1.96720043]
[1641763686961,0.25,143.25,143.2,1.96720043]
[1641763687162,25.0337,143.28,143.2,1.96720043]
[1641763687361,24.74002357,143.27,143.21,0.26]
[1641763687560,27.74002357,143.27,143.21,0.26]
[1641763688061,27.74002357,143.27,143.19,0.51]
[1641763688798,10.4739,143.25,143.19,0.51]
[1641763689965,3.0,143.24,143.19,0.51]
[1641763690364,10.4739,143.25,143.19,0.51]
[1641763690764,3.0,143.24,143.19,0.51]
[1641763690965,10.4739,143.25,143.19,0.51]
[1641763693369,3.0,143.24,143.19,0.51]
[1641763694771,10.4739,143.25,143.19,0.51]
[1641763694970,3.25,143.24,143.18,7.28655024]
[1641763695171,3.25,143.24,143.17,12.44050043]
[1641763696071,3.25,143.24,143.17,10.4733]
[1641763696297,3.0,143.24,143.17,10.4733]
[1641763696499,3.0,143.24,143.18,0.26]
[1641763696698,10.4739,143.25,143.18,10.7332]
[1641763696897,3.0,143.24,143.19,0.26]
[1641763697098,3.0,143.23,143.19,0.26]
[1641763697300,10.4739,143.25,143.19,0.26]
[1641763697501,23.244,143.26,143.16,1.96720043]
[1641763697698,3.51,143.24,143.16,1.96720043]
[1641763697901,11.685,143.23,143.16,1.96720043]
[1641763698098,3.0,143.22,143.16,1.96720043]
[1641763698300,3.51,143.22,143.13,1.96720043]
[1641763698499,30.92948812,143.21,143.13,1.96720043]
[1641763698699,29.18348812,143.21,143.13,1.96720043]
[1641763698902,13.7276,143.2,143.13,1.96720043]
[1641763699202,13.7276,143.2,143.12,10.4771]
[1641763699400,38.5332,143.2,143.12,10.4771]
[1641763699801,38.5332,143.2,143.13,0.26]
[1641763703802,10.4784,143.19,143.13,0.26]
[1641763704007,3.25,143.18,143.13,0.26]
[1641763704413,0.25,143.18,143.13,0.26]
[1641763704613,3.0,143.18,143.13,0.26]
[1641763704808,3.0,143.18,143.12,0.51]
[1641763705211,3.0,143.18,143.12,0.26]
[1641763706209,0.25,143.17,143.12,0.26]
[1641763706409,3.0,143.18,143.12,0.26]
[1641763707015,10.4784,143.19,143.12,0.26]
[1641763707513,3.0,143.18,143.12,0.26]
[1641763707712,10.4784,143.19,143.12,0.26]
[1641763707912,0.25,143.18,143.12,10.7381]
[1641763708311,3.25,143.18,143.12,10.7381]
[1641763710916,3.25,143.18,143.12,10.4781]
[1641763711116,3.25,143.18,143.11,7.28958493]
[1641763711317,36.9803,143.18,143.11,7.28958493]
[1641763712418,36.9803,143.18,143.12,0.26]
[1641763712616,36.9803,143.18,143.11,7.28958493]
[1641763712817,36.9803,143.18,143.1,86.9586]
[1641763713017,36.9803,143.18,143.11,0.25]
[1641763713216,36.9803,143.18,143.1,86.9586]
[1641763714219,36.9803,143.18,143.1,10.4789]
[1641763714419,20.6799,143.17,143.09,1.96720043]
[1641763714822,3.25,143.16,143.09,1.96720043]
[1641763715053,13.19,143.16,143.09,1.96720043]
[1641763715223,29.46442214,143.15,143.06,1.96720043]
[1641763715421,0.25,143.14,143.06,1.96720043]
[1641763715624,3.25,143.14,143.07,0.51]
[1641763715925,3.0,143.14,143.07,10.9916]
[1641763716123,52.87392214,143.15,143.07,10.9916]
[1641763716523,52.87392214,143.15,143.07,12.95880043]
[1641763716726,0.25,143.14,143.07,12.95880043]
[1641763718323,23.6695,143.15,143.07,12.95880043]
[1641763718523,1.746,143.2,143.07,12.95880043]
[1641763718724,114.4077,143.21,143.08,26.9543]
[1641763718923,0.25,143.2,143.12,10.4762]
[1641763719122,3.25,143.2,143.12,10.4762]
[1641763719323,3.25,143.2,143.13,0.26]
[1641763719527,3.25,143.2,143.13,0.51]
[1641763719726,3.25,143.2,143.13,0.26]
[1641763719927,3.25,143.2,143.12,0.51]
[1641763720424,0.25,143.2,143.12,0.51]
[1641763720824,0.25,143.2,143.13,10.4767]
[1641763721026,0.25,143.2,143.14,0.26]
[1641763721225,0.25,143.2,143.12,0.26]
[1641763721626,3.25,143.2,143.11,1.96720043]
[1641763721827,10.4799,143.17,143.1,1.96720043]
[1641763722125,3.0,143.16,143.1,1.96720043]
[1641763722326,11.946,143.19,143.1,1.96720043]
[1641763722563,0.25,143.15,143.1,1.96720043]
[1641763722729,25.51685766,143.15,143.08,1.96720043]
[1641763722929,28.51685766,143.15,143.08,1.96720043]
[1641763723127,25.51685766,143.15,143.08,1.96720043]
[1641763723727,25.51685766,143.15,143.09,0.26]
[1641763723928,3.0,143.14,143.09,0.26]
[1641763724131,25.51685766,143.15,143.09,0.26]
[1641763724629,25.51685766,143.15,143.08,1.96720043]
[1641763724829,35.99825766,143.15,143.08,1.96720043]
[1641763725332,3.0,143.14,143.08,1.96720043]
[1641763725530,27.2785,143.14,143.08,1.96720043]
[1641763725730,0.25,143.13,143.07,1.96720043]
[1641763725932,0.25,143.13,143.08,0.26]
[1641763726131,10.733,143.13,143.08,0.26]
[1641763726736,10.733,143.13,143.06,2.22720043]
[1641763727335,0.25,143.13,143.06,12.70970043]
[1641763727536,0.25,143.13,143.07,2.21720043]
[1641763729237,0.25,143.13,143.08,0.26]
[1641763730784,10.7329,143.13,143.08,0.26]
[1641763733372,0.25,143.13,143.08,0.26]
[1641763733970,0.25,143.13,143.07,1.96720043]
[1641763734172,0.51,143.13,143.07,1.96720043]
[1641763734771,0.51,143.13,143.06,12.44950043]
[1641763735074,0.51,143.13,143.07,0.26]
[1641763735270,0.51,143.13,143.06,12.44950043]
[1641763735972,10.9928,143.13,143.06,12.44950043]
[1641763736872,10.9928,143.13,143.07,0.26]
[1641763739878,0.4823,143.12,143.07,0.26]
[1641763740078,0.4823,143.12,143.07,10.9916]
[1641763740377,0.4823,143.12,143.07,12.70880043]
[1641763740780,0.4823,143.12,143.07,2.22720043]
[1641763741179,0.4823,143.12,143.06,10.4824]
[1641763741582,0.4823,143.12,143.07,0.25]
[1641763742789,0.4823,143.12,143.09,10.4796]
[1641763742989,0.4823,143.12,143.1,6.5743999]
[1641763743190,25.26685766,143.15,143.1,6.3243999]
[1641763743389,0.4823,143.14,143.1,6.3243999]
[1641763744392,0.7323,143.14,143.1,6.3243999]
[1641763744794,0.4823,143.14,143.1,6.3243999]
[1641763745295,0.4823,143.14,143.1,6.0643999]
[1641763745495,0.7323,143.14,143.08,1.96720043]
[1641763746395,0.9923,143.14,143.08,1.96720043]
[1641763746598,3.9923,143.14,143.08,1.96720043]
[1641763746797,37.6383,143.14,143.06,35.69760043]
[1641763746995,39.3853,143.14,143.06,1.96720043]
[1641763747597,39.3853,143.14,143.05,0.07962902]
[1641763748395,39.3853,143.14,143.05,0.33962902]
[1641763749222,9.94,143.13,143.05,0.07962902]
[1641763749419,0.51,143.12,143.05,0.07962902]
[1641763749620,27.7872,143.12,143.05,0.07962902]
[1641763750621,27.7872,143.12,143.05,0.33962902]
[1641763750820,10.4844,143.11,143.05,0.33962902]
[1641763751221,0.25,143.1,143.05,0.33962902]
[1641763751423,0.25,143.1,143.05,10.82262902]
[1641763751621,27.2772,143.12,143.05,11.07262902]
[1641763751825,0.25,143.11,143.05,0.07962902]
[1641763752022,0.25,143.11,143.06,0.26]
[1641763752723,0.4823,143.1,143.06,0.26]
[1641763752921,0.4823,143.1,143.05,0.33962902]
[1641763753324,24.85444968,143.09,143.05,0.33962902]
[1641763753524,24.85444968,143.09,143.06,1.96720043]
[1641763753923,35.34024968,143.09,143.06,1.96720043]
[1641763754325,35.34024968,143.09,143.05,0.07962902]
[1641763754524,0.4823,143.1,143.05,0.07962902]
[1641763755426,30.97387321,143.1,143.05,0.33962902]
[1641763755625,21.08288644,143.02,143.01,3.93507958]
[1641763755826,54.0,143.0,142.94,0.34966193]
[1641763756026,14.688,142.99,142.94,0.34966193]
[1641763756225,14.938,142.99,142.94,0.34966193]
[1641763756426,0.26,142.98,142.94,0.34966193]
[1641763756634,9.94,142.97,142.94,0.34966193]
[1641763756838,9.94,142.97,142.88,83.0665]
[1641763756839,26.0,142.96,142.88,83.0665]
[1641763757030,29.25,142.96,142.88,83.0665]
[1641763757429,10.2,142.95,142.88,7.076]
[1641763757630,1.749,142.94,142.88,7.076]
[1641763757830,9.94,142.93,142.88,3.076]
[1641763758031,3.0,142.92,142.88,3.076]
[1641763758232,9.94,142.91,142.88,3.076]
[1641763758431,0.25,142.9,142.88,3.076]
[1641763758632,9.94,142.89,142.88,3.076]
[1641763759031,10.4223,142.89,142.88,3.076]
[1641763759436,13.4223,142.89,142.88,3.076]
[1641763759835,10.4223,142.89,142.88,3.076]
[1641763760037,13.6723,142.89,142.88,3.076]
[1641763760435,52.4329,142.89,142.88,3.076]
[1641763761033,24.4329,142.89,142.88,3.076]
[1641763761435,24.1829,142.89,142.88,3.076]
[1641763761833,24.1829,142.89,142.88,3.096]
[1641763762035,24.4329,142.89,142.88,3.096]
[1641763762235,24.1829,142.89,142.88,3.096]
[1641763762434,23.9229,142.89,142.88,3.096]
[1641763763235,73.4329,142.89,142.88,3.096]
[1641763763534,51.0,142.88,142.79,37.9356107]
[1641763763734,9.94,142.87,142.79,37.9356107]
[1641763764144,10.4223,142.87,142.79,37.9356107]
[1641763764544,10.4223,142.87,142.8,0.07]
[1641763764742,10.4223,142.87,142.79,27.0041107]
[1641763764941,10.4223,142.87,142.8,0.26]
[1641763765643,10.4223,142.87,142.82,10.4993]
[1641763766046,10.4223,142.87,142.83,0.26]
[1641763766847,10.4223,142.87,142.83,0.25]
[1641763767048,10.4223,142.87,142.82,10.4993]
[1641763767570,10.4223,142.87,142.83,0.25]
[1641763767772,10.4223,142.87,142.82,10.4993]
[1641763768373,10.4223,142.87,142.83,0.26]
[1641763769675,0.4823,142.87,142.83,0.51]
[1641763769873,1.75,142.93,142.84,72.0]
[1641763770073,1.75,142.93,142.85,3.0]
[1641763770274,1.75,142.93,142.85,3.51]
[1641763770474,1.75,142.93,142.86,28.43097715]
[1641763770673,9.94,142.96,142.86,28.43097715]
[1641763770874,9.94,142.96,142.87,0.51]
[1641763771675,0.25,142.95,142.87,0.51]
[1641763771874,9.94,142.96,142.87,0.51]
[1641763772574,9.94,142.96,142.89,10.4946]
[1641763772975,9.94,142.96,142.9,0.51]
[1641763773176,9.94,142.96,142.9,0.26]
[1641763773575,9.94,142.96,142.87,0.51]
[1641763773778,9.94,142.96,142.87,0.26]
[1641763773977,13.7563,142.95,142.86,1.1955233]
[1641763774180,9.94,142.94,142.86,1.1955233]
[1641763774378,0.25,142.93,142.86,1.1955233]
[1641763774578,10.19,142.93,142.86,1.1955233]
[1641763774779,10.45,142.93,142.86,1.1955233]
[1641763774981,3.0,142.92,142.86,1.1955233]
[1641763775178,10.19,142.93,142.86,1.1955233]
[1641763775379,20.6878,142.93,142.86,1.1955233]
[1641763775789,10.19,142.93,142.86,1.1955233]
[1641763775987,10.19,142.93,142.87,0.26]
[1641763776390,10.19,142.93,142.87,0.51]
[1641763776590,10.19,142.93,142.87,0.25]
[1641763776791,10.19,142.93,142.87,0.26]
[1641763777595,25.69844876,142.92,142.86,1.1955233]
[1641763777790,25.95844876,142.92,142.86,1.1955233]
[1641763777991,10.19,142.91,142.86,1.1955233]
[1641763778193,14.939,142.91,142.86,1.1955233]
[1641763778398,0.26,142.9,142.86,1.1955233]
[1641763778820,23.4394,142.91,142.86,1.1955233]
[1641763780125,20.4394,142.91,142.86,1.1955233]
[1641763784131,9.94,142.91,142.86,1.1955233]
[1641763785234,20.4389,142.91,142.86,1.1955233]
[1641763786635,9.94,142.91,142.86,1.1955233]
[1641763787235,25.69844876,142.92,142.87,0.51]
[1641763787434,9.94,142.94,142.87,0.26]
[1641763788536,9.94,142.94,142.87,0.51]
[1641763788740,1.749,143.0,142.87,8.983]
[1641763788937,2.41,143.01,142.87,8.983]
[1641763788938,12.35,143.01,142.87,8.983]
[1641763789338,12.35,143.01,142.88,3.07]
[1641763789537,12.35,143.01,142.88,7.02902539]
[1641763789740,27.84640619,143.0,142.89,0.51]
[1641763789937,27.84640619,143.0,142.89,0.25]
[1641763790343,27.84640619,143.0,142.89,3.25]
[1641763790538,27.84640619,143.0,142.9,3.95902539]
[1641763790737,0.25,142.99,142.9,3.95902539]
[1641763791237,27.84640619,143.0,142.91,0.25]
[1641763791438,27.84640619,143.0,142.89,0.25]
[1641763791838,38.33870619,143.0,142.91,10.4923]
[1641763792137,38.33870619,143.0,142.91,34.14558973]
[1641763792338,48.27870619,143.0,142.92,0.26]
[1641763793042,48.27870619,143.0,142.92,0.51]
[1641763793242,48.27870619,143.0,142.92,10.752]
[1641763795844,48.27870619,143.0,142.93,3.0]
[1641763796244,48.27870619,143.0,142.94,0.26]
[1641763796846,9.94,143.0,142.94,0.26]
[1641763797047,9.94,143.0,142.93,10.4914]
[1641763797447,9.94,143.0,142.94,0.26]
[1641763799448,0.25,142.99,142.93,10.4914]
[1641763799748,0.25,142.99,142.86,114.2437]
[1641763799749,9.94,142.98,142.86,114.2437]
[1641763799948,20.4345,142.98,142.86,114.2437]
[1641763800447,20.4345,142.98,142.86,137.77195989]
[1641763800849,20.4345,142.98,142.87,10.4952]
[1641763801250,29.00848247,142.96,142.86,79.2646]
[1641763801448,38.94848247,142.96,142.86,79.2646]
[1641763801649,3.51,142.95,142.81,86.4166]
[1641763801849,3.51,142.95,142.81,86.4866]
[1641763802250,3.51,142.95,142.82,25.93049735]
[1641763802450,52.2765,142.95,142.82,29.88027496]
[1641763802849,62.7745,142.95,142.84,10.4974]
[1641763803051,72.7145,142.95,142.84,10.4974]
[1641763804349,74.4635,142.95,142.84,10.4974]
[1641763805080,74.4635,142.95,142.82,10.499]
[1641763805252,74.4635,142.95,142.82,0.25]
[1641763805856,74.5335,142.95,142.82,0.25]
[1641763806051,74.5335,142.95,142.82,29.4251373]
[1641763807351,74.5335,142.95,142.82,0.25]
[1641763807552,74.4635,142.95,142.82,0.25]
[1641763808360,74.4635,142.95,142.81,31.55500054]
[1641763808554,72.4545,142.95,142.81,31.55500054]
[1641763808757,72.4545,142.95,142.81,33.3358264]
[1641763808958,72.2045,142.95,142.82,0.07]
[1641763809160,72.2045,142.95,142.82,4.0178526]
[1641763809360,72.2745,142.95,142.85,10.4965]
[1641763809560,72.2045,142.95,142.85,10.4965]
[1641763809762,72.2745,142.95,142.82,3.9478526]
[1641763809961,12.5073,142.94,142.82,3.9478526]
[1641763810163,9.94,142.93,142.82,3.9478526]
[1641763810462,0.26,142.92,142.82,3.9478526]
[1641763810662,0.26,142.92,142.84,10.4979]
[1641763811365,10.7585,142.92,142.81,66.29460054]
[1641763811562,10.7585,142.92,142.82,0.26]
[1641763812465,10.7585,142.92,142.84,10.4979]
[1641763812689,0.26,142.92,142.84,10.4979]
[1641763812888,0.51,142.92,142.84,10.4979]
[1641763813090,0.51,142.92,142.82,0.25]
[1641763813591,9.94,142.91,142.79,10.5011]
[1641763813789,1.82,142.9,142.78,74.0485]
[1641763813993,9.94,142.89,142.75,0.1]
[1641763814191,1.75,142.88,142.75,0.1]
[1641763814393,40.4006245,142.87,142.8,3.94839991]
[1641763814594,3.0,142.86,142.8,3.94839991]
[1641763814794,10.5038,142.85,142.8,3.94839991]
[1641763814992,9.94,142.87,142.8,3.94839991]
[1641763815194,9.94,142.87,142.79,23.46905105]
[1641763815595,9.94,142.87,142.79,33.97055105]
[1641763815897,9.94,142.87,142.8,0.51]
[1641763816098,9.94,142.87,142.8,0.25]
[1641763816296,9.94,142.87,142.8,0.51]
[1641763816896,9.94,142.87,142.81,10.4999]
[1641763817897,9.94,142.87,142.8,0.51]
[1641763818097,9.94,142.87,142.8,0.25]
[1641763818398,0.26,142.86,142.79,23.46905105]
[1641763818599,9.94,142.87,142.79,23.46905105]
[1641763819300,20.4418,142.87,142.76,10.5032]
[1641763819599,3.26,142.86,142.76,13.5032]
[1641763819800,3.51,142.86,142.76,10.5032]
[1641763819998,3.51,142.86,142.75,0.1]
[1641763820199,5.26,142.86,142.75,0.1]
[1641763820402,20.4457,142.85,142.75,0.1]
[1641763820701,19.2501767,142.85,142.75,0.1]
[1641763820904,0.26,142.84,142.75,0.1]
[1641763821304,0.51,142.84,142.75,0.1]
[1641763821503,0.26,142.84,142.75,0.1]
[1641763821703,11.0143,142.84,142.75,0.1]
[1641763822303,11.0143,142.84,142.75,0.35]
[1641763822703,0.51,142.84,142.75,0.35]
[1641763822904,0.26,142.84,142.75,0.35]
[1641763823103,3.26,142.84,142.75,0.35]
[1641763823304,24.6104,142.86,142.75,0.35]
[1641763823902,24.6104,142.86,142.75,0.61]
[1641763824105,24.6104,142.86,142.79,10.5015]
[1641763824305,56.17465843,142.86,142.75,0.36]
[1641763824507,47.0,142.85,142.74,87.77093548]
[1641763824705,47.51,142.85,142.75,0.26]
[1641763825308,58.0138,142.85,142.75,10.7639]
[1641763826708,57.7538,142.85,142.76,10.5034]
[1641763826908,57.7538,142.85,142.77,0.26]
[1641763828608,57.7538,142.85,142.77,10.7629]
[1641763828807,0.25,142.85,142.77,10.7629]
[1641763829011,24.6104,142.86,142.77,10.7629]
[1641763829208,20.4423,142.87,142.78,0.25]
[1641763830408,20.4423,142.87,142.76,0.07]
[1641763830809,20.4423,142.87,142.78,10.5021]
[1641763831010,20.4423,142.87,142.79,0.26]
[1641763831212,20.4423,142.87,142.79,0.51]
[1641763832141,20.4423,142.87,142.79,0.26]
[1641763832340,3.0,142.86,142.79,0.26]
[1641763833041,13.5027,142.86,142.79,0.53]
[1641763833241,13.5027,142.86,142.79,0.28]
[1641763833540,13.5027,142.86,142.79,0.02]
[1641763833742,13.5027,142.86,142.85,0.68449684]
[1641763834242,13.5027,142.86,142.85,9.684e-05]
[1641763834942,13.7627,142.86,142.85,9.684e-05]
[1641763835343,13.5027,142.86,142.85,9.684e-05]
[1641763837343,13.7527,142.86,142.85,9.684e-05]
[1641763838044,13.7527,142.86,142.85,0.02009684]
[1641763838643,13.7527,142.86,142.78,0.26]
[1641763838644,0.01990316,142.85,142.78,0.26]
[1641763838844,10.77370316,142.85,142.75,10.5038]
[1641763839050,11.03370316,142.85,142.75,10.5038]
[1641763839246,11.10370316,142.85,142.76,0.26]
[1641763839445,11.10370316,142.85,142.75,10.5038]
[1641763839746,39.32623177,142.85,142.75,10.5038]
[1641763840645,39.32623177,142.85,142.74,30.20993548]
[1641763841546,39.32623177,142.85,142.75,0.26]
[1641763841753,39.32623177,142.85,142.75,4.21912623]
[1641763841947,39.06623177,142.85,142.77,10.003]
[1641763842146,38.99623177,142.85,142.77,10.003]
[1641763842347,38.99623177,142.85,142.75,3.95912623]
[1641763842547,10.8362,142.84,142.76,3.95912623]
[1641763843048,0.25,142.83,142.75,3.95912623]
[1641763843451,0.25,142.83,142.76,0.02]
[1641763843854,0.58,142.84,142.76,0.02]
[1641763844050,14.0855,142.84,142.76,0.02]
[1641763844256,13.8355,142.84,142.76,0.02]
[1641763844449,13.5755,142.84,142.76,0.02]
[1641763844649,0.26,142.83,142.76,0.02]
[1641763845755,10.5057,142.82,142.76,0.02]
[1641763846154,0.25,142.81,142.76,0.02]
[1641763846351,0.51,142.83,142.76,0.02]
[1641763846551,10.45,142.83,142.76,0.02]
[1641763846953,3.0,142.82,142.76,0.02]
[1641763847353,0.25,142.81,142.76,0.02]
[1641763847953,13.5062,142.82,142.76,0.02]
[1641763848154,10.5062,142.82,142.76,0.02]
[1641763848353,10.5062,142.82,142.76,3.97912623]
[1641763848955,0.25,142.81,142.76,3.97912623]
[1641763849359,10.5062,142.82,142.76,3.97912623]
[1641763849958,9.94,142.83,142.77,0.26]
[1641763850761,9.94,142.83,142.76,3.97912623]
[1641763850959,9.94,142.83,142.77,0.26]
[1641763851257,9.94,142.83,142.78,3.95912623]
[1641763851659,24.8967,142.84,142.79,0.26]
[1641763852658,24.8967,142.84,142.77,3.96186564]
[1641763852659,24.8967,142.84,142.77,4.47186564]
[1641763852857,24.8967,142.84,142.78,10.5022]
[1641763853259,27.02631445,142.85,142.78,10.5022]
[1641763853458,27.02631445,142.85,142.79,0.26]
[1641763853857,27.02631445,142.85,142.79,4.22390173]
[1641763854563,27.02631445,142.85,142.79,0.26]
[1641763857062,37.52961445,142.85,142.78,4.22186564]
[1641763857596,37.52961445,142.85,142.78,0.26]
[1641763858593,37.52961445,142.85,142.78,0.28]
[1641763859897,0.51,142.84,142.78,0.02]
[1641763860095,11.0162,142.84,142.78,0.02]
[1641763860297,14.0162,142.84,142.78,0.02]
[1641763860697,9.94,142.83,142.78,0.02]
[1641763860899,0.51,142.82,142.78,0.02]
[1641763861098,3.51,142.82,142.78,0.02]
[1641763861802,14.0164,142.82,142.78,0.02]
[1641763862000,13.7564,142.82,142.78,0.02]
[1641763862699,10.7564,142.82,142.78,0.02]
[1641763864502,9.94,142.83,142.78,0.02]
[1641763864900,3.0,142.82,142.78,0.02]
[1641763865102,9.94,142.83,142.78,0.02]
[1641763865503,9.94,142.83,142.78,22.84582012]
[1641763866301,9.94,142.83,142.78,0.28]
[1641763866503,9.94,142.83,142.78,0.02]
[1641763866703,20.4452,142.83,142.78,0.02]
[1641763867404,47.58513827,142.83,142.78,0.02]
[1641763867804,0.25,142.82,142.78,0.02]
[1641763868008,10.7564,142.82,142.78,0.02]
[1641763869006,4.7564,142.82,142.78,0.02]
[1641763871206,34.4164,142.84,142.78,0.02]
[1641763871406,44.3564,142.84,142.78,0.02]
[1641763871805,9.94,142.84,142.79,10.5019]
[1641763872007,9.94,142.88,142.8,0.26]
[1641763872708,26.30042236,142.87,142.78,0.55]
[1641763873309,26.30042236,142.87,142.78,4.51186564]
[1641763873510,26.30042236,142.87,142.79,0.26]
[1641763873908,26.30042236,142.87,142.8,10.5012]
[1641763874308,26.30042236,142.87,142.81,0.26]
[1641763875012,36.80222236,142.87,142.8,10.5012]
[1641763875313,36.80222236,142.87,142.78,14.50416564]
[1641763875509,36.80222236,142.87,142.78,4.00186564]
[1641763875711,36.80222236,142.87,142.78,0.04]
[1641763875911,36.80222236,142.87,142.78,0.29]
[1641763876510,36.80222236,142.87,142.81,1.98150371]
[1641763876912,36.80222236,142.87,142.82,0.26]
[1641763877209,26.30042236,142.87,142.82,0.26]
[1641763877612,26.30042236,142.87,142.81,1.96737771]
[1641763877811,26.30042236,142.87,142.82,1.96737771]
[1641763878113,9.94,142.88,142.82,1.96737771]
[1641763878512,127.8434,142.89,142.82,1.96737771]
[1641763878712,48.6947,142.89,142.82,1.96737771]
[1641763879111,48.6947,142.89,142.8,3.96186564]
[1641763879309,48.6947,142.89,142.8,4.47186564]
[1641763879511,48.6947,142.89,142.81,10.5]
[1641763879712,59.195,142.89,142.81,10.5]
[1641763879914,26.1383924,142.88,142.81,10.5]
[1641763880116,26.1383924,142.88,142.82,0.26]
[1641763880516,26.1383924,142.88,142.8,0.51]
[1641763880713,26.1383924,142.88,142.8,0.26]
[1641763880912,26.1383924,142.88,142.8,0.51]
[1641763881114,26.1383924,142.88,142.82,10.4999]
[1641763881313,26.1383924,142.88,142.8,0.51]
[1641763881914,0.25,142.87,142.8,0.26]
[1641763882117,0.25,142.87,142.81,3.96101888]
[1641763882315,0.25,142.87,142.81,14.46091888]
[1641763882515,0.25,142.87,142.82,0.26]
[1641763883015,0.25,142.87,142.8,0.26]
[1641763883849,0.25,142.87,142.82,10.4998]
[1641763884314,0.25,142.87,142.83,0.26]
[1641763885117,26.1383924,142.88,142.83,0.26]
[1641763886318,26.1383924,142.88,142.82,10.4998]
[1641763886720,26.1383924,142.88,142.8,14.46236564]
[1641763886917,0.25,142.87,142.8,14.46236564]
[1641763887118,0.25,142.87,142.8,3.96186564]
[1641763887417,0.51,142.87,142.78,75.2512]
[1641763887617,24.3027,142.87,142.78,75.2512]
[1641763888017,24.0427,142.87,142.78,75.2512]